bitfinex/quotes_BTCUSD_20241211
["timestamp","ask_amount","ask_price","bid_price","bid_amount"]
[1733929763420,0.10030845,99758.0,99757.0,0.21446]
[1733929763677,0.00038121,99762.0,99758.0,0.200485]
[1733929763903,0.00038121,99762.0,99761.0,0.200479]
[1733929764307,0.00038121,99762.0,99761.0,0.50869493]
[1733929764509,0.00038121,99762.0,99761.0,0.65869493]
[1733929764717,2.331e-05,99762.0,99761.0,0.65869493]
[1733929765616,0.00102331,99762.0,99761.0,0.66169493]
[1733929765788,0.00102331,99762.0,99761.0,0.66469493]
[1733929766172,0.00202331,99762.0,99761.0,0.66769493]
[1733929766395,0.00202331,99762.0,99761.0,0.66235128]
[1733929766742,0.00302331,99762.0,99761.0,0.66535128]
[1733929770088,0.0001718,99770.0,99769.0,0.200463]
[1733929770293,0.0001718,99770.0,99769.0,0.50633528]
[1733929770475,0.0001718,99770.0,99769.0,0.51103089]
[1733929770676,0.0001718,99770.0,99769.0,0.73138552]
[1733929771371,0.10048025,99770.0,99769.0,0.51503089]
[1733929771979,0.10048025,99770.0,99769.0,0.51103089]
[1733929772398,0.10148025,99770.0,99769.0,0.52003089]
[1733929772610,0.10048025,99770.0,99769.0,0.51503089]
[1733929772743,0.10048025,99770.0,99769.0,0.51103089]
[1733929772949,0.10148025,99770.0,99769.0,0.34828624]
[1733929773417,0.10148025,99770.0,99769.0,0.56858562]
[1733929773831,0.0011718,99770.0,99769.0,0.52454371]
[1733929774188,0.0011718,99770.0,99769.0,0.05291396]
[1733929774396,0.0011718,99770.0,99769.0,0.53503713]
[1733929774631,0.0011718,99770.0,99769.0,0.35878624]
[1733929774861,0.0011718,99770.0,99769.0,0.57909936]
[1733929775087,0.15,99791.0,99779.0,0.200442]
[1733929775236,0.29499993,99793.0,99779.0,0.200442]
[1733929775420,0.14499993,99788.0,99779.0,0.51097819]
[1733929775823,0.14499993,99784.0,99779.0,0.51097819]
[1733929776275,0.14499993,99784.0,99779.0,0.51331014]
[1733929776717,0.14499993,99786.0,99779.0,0.51331014]
[1733929777048,0.14499993,99792.0,99779.0,0.51331014]
[1733929777259,0.14499993,99786.0,99779.0,0.51331014]
[1733929778061,0.0011718,99780.0,99779.0,0.53404269]
[1733929778312,0.0011718,99780.0,99779.0,0.53804269]
[1733929778759,0.0011718,99780.0,99779.0,0.53404269]
[1733929778938,0.0011718,99780.0,99779.0,0.52604269]
[1733929778939,0.0001718,99780.0,99779.0,0.52604269]
[1733929779148,0.0011718,99780.0,99779.0,0.53904269]
[1733929779595,0.0001718,99780.0,99779.0,0.53004269]
[1733929779803,0.0011718,99780.0,99779.0,0.68904269]
[1733929780025,0.14499993,99791.0,99780.0,0.20044]
[1733929780231,0.15,99800.0,99790.0,0.2636771]
[1733929780439,0.10543699,99810.0,99809.0,0.200382]
[1733929780667,0.0001718,99810.0,99809.0,1.30752283]
[1733929780869,0.15,99829.0,99809.0,1.46822688]
[1733929781072,0.10526519,99836.0,99822.0,0.15]
[1733929781270,0.200256,99872.0,99824.0,0.56993133]
[1733929781271,0.10526519,99847.0,99824.0,0.56993133]
[1733929781494,0.11743397,99847.0,99837.0,0.08783173]
[1733929781694,0.01216878,99847.0,99846.0,0.200308]
[1733929782122,0.10526519,99846.0,99839.0,0.08783173]
[1733929782350,0.10526519,99853.0,99852.0,0.200295]
[1733929782808,0.00370018,99856.0,99837.0,0.005]
[1733929783011,0.00370018,99856.0,99855.0,0.19658982]
[1733929783217,0.00370018,99856.0,99853.0,0.15219166]
[1733929783421,0.00370018,99853.0,99852.0,0.0206005]
[1733929784659,0.00370018,99853.0,99852.0,0.0216005]
[1733929785069,0.00370018,99853.0,99852.0,0.0296005]
[1733929785526,0.00370018,99853.0,99852.0,0.0336005]
[1733929786823,0.00370018,99853.0,99852.0,0.04599027]
[1733929789127,0.0001716,99870.0,99852.0,0.04599027]
[1733929789128,0.0751,99856.0,99852.0,0.04599027]
[1733929789332,0.20557364,99853.0,99852.0,0.04599027]
[1733929789704,0.35557364,99853.0,99852.0,0.04599027]
[1733929791138,0.35557364,99853.0,99852.0,0.02929027]
[1733929791352,0.35557364,99853.0,99852.0,0.0169005]
[1733929791550,0.0761,99856.0,99852.0,0.0169005]
[1733929791752,0.0761,99856.0,99853.0,0.35611588]
[1733929791753,0.001,99856.0,99853.0,0.35611588]
[1733929791950,0.00370018,99855.0,99853.0,0.1817931]
[1733929792229,0.00370018,99855.0,99852.0,0.0169005]
[1733929792424,0.00370018,99855.0,99854.0,0.15218967]
[1733929792626,0.00370018,99855.0,99852.0,0.0169005]
[1733929792627,0.00370018,99854.0,99852.0,0.0169005]
[1733929793091,0.00370018,99853.0,99852.0,0.0169005]
[1733929793502,0.10526519,99842.0,99840.0,0.01255206]
[1733929793729,0.35557364,99841.0,99840.0,0.01310223]
[1733929793933,0.37857364,99841.0,99840.0,0.00055017]
[1733929794140,0.37857364,99841.0,99783.0,0.0464]
[1733929794141,0.15,99818.0,99780.0,0.20044]
[1733929794344,0.15,99811.0,99801.0,0.00055058]
[1733929794551,0.10526519,99804.0,99801.0,0.00055058]
[1733929794746,0.10526519,99802.0,99801.0,0.00055058]
[1733929795308,0.10526519,99802.0,99801.0,0.02104368]
[1733929795514,0.10526519,99802.0,99801.0,0.02504368]
[1733929795717,0.10526519,99802.0,99801.0,0.03104368]
[1733929795919,0.10526519,99802.0,99801.0,0.02704368]
[1733929796123,0.10526519,99803.0,99801.0,0.02104368]
[1733929796348,0.0828,99827.0,99826.0,0.200348]
[1733929796546,0.0464,99841.0,99811.0,0.15]
[1733929796547,0.10526519,99836.0,99811.0,0.15]
[1733929796699,0.10526519,99835.0,99834.0,0.200332]
[1733929796898,0.10526519,99830.0,99829.0,0.200342]
[1733929797150,0.10526519,99830.0,99811.0,0.15]
[1733929797151,0.10526519,99826.0,99821.0,0.200358]
[1733929797399,0.10526519,99829.0,99828.0,0.02035599]
[1733929797586,0.10526519,99826.0,99813.0,0.15]
[1733929797831,0.10526519,99826.0,99812.0,0.200376]
[1733929797832,0.25030845,99825.0,99811.0,0.16224168]
[1733929798039,0.25030845,99825.0,99814.0,0.200372]
[1733929798247,0.25030845,99825.0,99824.0,0.01987715]
[1733929798764,0.10030845,99825.0,99824.0,0.01987715]
[1733929798970,0.10526519,99826.0,99825.0,0.20035]
[1733929799283,0.20557364,99826.0,99824.0,0.01987715]
[1733929799706,0.10030845,99825.0,99824.0,0.01987715]
[1733929799912,0.10030845,99825.0,99812.0,0.15]
[1733929799913,0.15,99824.0,99812.0,0.200376]
[1733929800133,0.15,99818.0,99813.0,0.15]
[1733929800295,0.15,99818.0,99817.0,0.02032394]
[1733929800498,0.25526519,99812.0,99811.0,0.00055058]
[1733929800704,0.10526519,99831.0,99824.0,0.001]
[1733929800920,0.10326519,99835.0,99834.0,0.200332]
[1733929801291,0.0824,99842.0,99827.0,0.003]
[1733929801503,0.25326519,99849.0,99848.0,0.200304]
[1733929801732,0.25030845,99849.0,99846.0,0.200308]
[1733929801945,0.10030845,99848.0,99843.0,0.15]
[1733929802140,0.10030845,99848.0,99844.0,0.200312]
[1733929802341,0.10030845,99848.0,99843.0,0.15]
[1733929802758,0.10030845,99848.0,99843.0,0.15055058]
[1733929802960,0.10030845,99848.0,99843.0,0.00055058]
[1733929803722,0.003,99849.0,99848.0,0.00306516]
[1733929803923,0.01217255,99870.0,99855.0,0.19288764]
[1733929804126,0.00370018,99855.0,99853.0,0.14196462]
[1733929804476,0.00370018,99855.0,99853.0,0.0716612]
[1733929804688,0.00370018,99855.0,99854.0,0.00505796]
[1733929804895,0.00370018,99855.0,99854.0,0.18314688]
[1733929805130,0.00370018,99854.0,99849.0,0.15]
[1733929805371,0.00370018,99854.0,99851.0,0.200298]
[1733929805573,0.00370018,99854.0,99853.0,0.00882152]
[1733929805780,0.00370018,99854.0,99853.0,0.00912134]
[1733929807268,0.00370018,99854.0,99853.0,0.00512134]
[1733929807916,0.00370018,99854.0,99853.0,0.00812134]
[1733929808333,0.00370018,99854.0,99853.0,0.00772098]
[1733929808740,0.00370018,99854.0,99853.0,0.00885768]
[1733929809460,0.00320018,99854.0,99853.0,0.00885768]
[1733929810316,0.0001716,99860.0,99853.0,0.00145732]
[1733929810761,0.0001716,99860.0,99859.0,0.17068056]
[1733929810964,0.001,99854.0,99843.0,0.16271691]
[1733929811170,0.0001716,99860.0,99859.0,0.13179895]
[1733929811370,0.0001716,99860.0,99853.0,0.0015374]
[1733929811588,0.0136966,99858.0,99854.0,0.18659339]
[1733929811795,0.0136966,99858.0,99855.0,0.17289678]
[1733929812011,0.01369661,99855.0,99854.0,0.18659539]
[1733929812226,0.01369661,99855.0,99849.0,0.15]
[1733929812438,0.01369661,99855.0,99843.0,0.01871691]
[1733929812439,0.0818,99854.0,99850.0,0.01957569]
[1733929812656,0.023,99853.0,99843.0,0.01871691]
[1733929812880,0.023,99851.0,99843.0,0.01871691]
[1733929813118,0.023,99849.0,99843.0,0.03902156]
[1733929813322,0.023,99847.0,99843.0,0.02685523]
[1733929813528,0.12330845,99847.0,99843.0,0.02085523]
[1733929814215,0.22331,99845.0,99843.0,0.00055058]
[1733929814463,0.023,99841.0,99834.0,0.02052494]
[1733929814690,0.0492,99834.0,99818.0,0.00055102]
[1733929814903,0.023,99822.0,99818.0,0.00055102]
[1733929815128,0.10156075,99821.0,99818.0,0.00055102]
[1733929815333,0.023,99820.0,99818.0,0.00055102]
[1733929815534,0.10156075,99819.0,99818.0,0.00055102]
[1733929815801,0.12456075,99819.0,99818.0,0.00055102]
[1733929817248,0.03614558,99818.0,99800.0,0.0327192]
[1733929817368,0.023,99816.0,99800.0,0.02037074]
[1733929817571,0.03614558,99818.0,99801.0,0.200398]
[1733929817572,0.023,99814.0,99801.0,0.200398]
[1733929817774,0.01314558,99818.0,99806.0,0.200387]
[1733929817775,0.023,99812.0,99806.0,0.200387]
[1733929817986,0.023,99810.0,99800.0,0.02037074]
[1733929818192,0.01314558,99818.0,99800.0,0.02037074]
[1733929818193,0.023,99808.0,99803.0,0.200394]
[1733929818396,0.01314558,99818.0,99803.0,0.200394]
[1733929818397,0.023,99806.0,99803.0,0.200394]
[1733929818661,0.023,99804.0,99803.0,0.200394]
[1733929818869,0.12330845,99804.0,99803.0,0.200394]
[1733929819075,0.12330845,99804.0,99800.0,0.02037074]
[1733929819209,0.10030845,99803.0,99801.0,0.200398]
[1733929821010,0.10030845,99803.0,99801.0,0.201398]
[1733929821433,0.10030845,99803.0,99801.0,0.205398]
[1733929821842,0.10030845,99803.0,99801.0,0.005]
[1733929822567,0.10030845,99803.0,99801.0,0.205397]
[1733929823080,0.10030845,99803.0,99801.0,0.216682]
[1733929823302,0.023,99802.0,99801.0,0.213682]
[1733929823540,0.023,99802.0,99801.0,0.213582]
[1733929823767,0.023,99802.0,99801.0,0.214582]
[1733929824010,0.023,99802.0,99801.0,0.213582]
[1733929824210,0.023,99802.0,99801.0,0.216582]
[1733929824460,0.023,99802.0,99801.0,0.004]
[1733929824461,0.12330845,99802.0,99801.0,0.004]
[1733929824682,0.12456084,99802.0,99788.0,0.01964302]
[1733929824891,0.023,99800.0,99788.0,0.01964302]
[1733929825097,0.0463,99804.0,99776.0,0.200447]
[1733929825098,0.023,99798.0,99776.0,0.200447]
[1733929825313,0.023,99798.0,99787.0,0.01954283]
[1733929825314,0.10030845,99788.0,99787.0,0.01954283]
[1733929825514,0.200434,99783.0,99777.0,0.00659684]
[1733929825773,0.12456126,99782.0,99765.0,0.01246584]
[1733929825992,0.12456126,99782.0,99766.0,0.01956688]
[1733929826402,0.12456126,99782.0,99767.0,0.00664439]
[1733929826780,0.12511102,99782.0,99767.0,0.00664439]
[1733929826988,0.350402,99800.0,99761.0,0.200478]
[1733929826989,0.0762,99812.0,99780.0,0.15]
[1733929827209,0.0762,99849.0,99803.0,0.15]
[1733929827387,0.10030845,99845.0,99820.0,0.15]
[1733929827547,0.10030845,99845.0,99822.0,0.200356]
[1733929827755,0.10030845,99845.0,99836.0,0.200327]
[1733929827981,0.10030845,99845.0,99844.0,0.02023013]
[1733929828181,0.01214978,99857.0,99842.0,0.20030903]
[1733929828386,0.01214978,99857.0,99843.0,5.07892342]
[1733929828387,0.10030845,99857.0,99843.0,5.07892342]
[1733929828599,0.004,99845.0,99844.0,5.227922]
[1733929828798,0.05024792,99860.0,99842.0,0.00012722]
[1733929828799,0.15037733,99847.0,99842.0,0.00012722]
[1733929829093,0.15037733,99847.0,99844.0,0.02132631]
[1733929829295,0.15037733,99847.0,99845.0,0.20031]
[1733929829595,0.15037733,99847.0,99844.0,0.17173767]
[1733929830115,0.15037733,99847.0,99846.0,0.02052068]
[1733929831287,0.27368578,99847.0,99846.0,0.02452068]
[1733929831495,0.15037733,99847.0,99846.0,0.02452068]
[1733929832131,0.27368578,99847.0,99846.0,0.02990224]
[1733929832566,0.27368578,99847.0,99846.0,0.02152068]
[1733929832949,0.27368578,99847.0,99846.0,0.02052068]
[1733929833623,0.27368578,99847.0,99846.0,0.02252068]
[1733929833831,0.27368578,99847.0,99846.0,0.002]
[1733929833832,0.70589178,99847.0,99846.0,0.002]
[1733929834037,0.85589178,99847.0,99846.0,0.002]
[1733929834247,0.373314,99843.0,99842.0,0.00012722]
[1733929834449,0.200354,99824.0,99797.0,0.08857279]
[1733929834651,0.10030845,99810.0,99783.0,0.08757094]
[1733929834852,0.02424984,99809.0,99798.0,0.00792657]
[1733929835064,0.023,99807.0,99797.0,0.00016408]
[1733929835276,0.10155829,99806.0,99797.0,0.00016408]
[1733929835476,0.023,99805.0,99797.0,0.00016408]
[1733929835591,0.023,99803.0,99797.0,0.00016408]
[1733929835800,0.023,99801.0,99797.0,0.00016408]
[1733929836006,0.023,99799.0,99797.0,0.00016408]
[1733929836226,0.200366,99818.0,99797.0,0.00016408]
[1733929836227,0.12330845,99798.0,99797.0,0.00016408]
[1733929843389,0.12330845,99798.0,99797.0,0.00116408]
[1733929843390,0.10030845,99798.0,99797.0,0.00116408]
[1733929843535,0.0001716,99820.0,99814.0,0.15]
[1733929843734,0.0001716,99820.0,99815.0,0.00100163]
[1733929843937,0.0001716,99820.0,99800.0,0.17334064]
[1733929843938,0.10030845,99819.0,99800.0,0.2004]
[1733929844300,0.10030845,99819.0,99797.0,0.00016408]
[1733929844490,0.10030845,99819.0,99808.0,0.01965099]
[1733929844929,0.10030845,99819.0,99809.0,0.00100186]
[1733929845362,0.023,99818.0,99808.0,0.01965099]
[1733929845568,0.023,99816.0,99808.0,0.01965099]
[1733929845777,0.023,99814.0,99808.0,0.01965099]
[1733929845985,0.10030845,99813.0,99808.0,0.01965099]
[1733929846192,0.023,99812.0,99808.0,0.01965099]
[1733929846459,0.023,99810.0,99808.0,0.01965099]
[1733929846669,0.12330845,99810.0,99808.0,0.01965099]
[1733929846875,0.12330845,99810.0,99801.0,0.15]
[1733929847081,0.12330845,99810.0,99806.0,0.02008385]
[1733929847289,0.12330845,99810.0,99808.0,0.001]
[1733929847515,0.12330845,99810.0,99806.0,0.02008385]
[1733929847724,0.12330845,99810.0,99808.0,0.003]
[1733929848141,0.12330845,99810.0,99806.0,0.02008385]
[1733929848342,0.12430845,99810.0,99806.0,0.02008385]
[1733929849607,0.12430845,99810.0,99797.0,0.20364267]
[1733929849608,0.023,99808.0,99797.0,0.00016408]
[1733929849812,0.023,99806.0,99797.0,0.00016408]
[1733929850018,0.023,99806.0,99805.0,0.01992955]
[1733929850233,0.12330845,99806.0,99805.0,0.01992955]
[1733929851533,0.12330845,99806.0,99805.0,0.20668891]
[1733929851737,0.0001716,99820.0,99814.0,0.15]
[1733929851942,0.0001716,99820.0,99815.0,0.400739]
[1733929852170,0.0001716,99820.0,99819.0,0.15]
[1733929852380,0.0001716,99820.0,99819.0,0.30100155]
[1733929852609,0.0001716,99820.0,99819.0,0.3]
[1733929853452,0.0011716,99820.0,99819.0,0.306]
[1733929854099,0.0011716,99820.0,99819.0,0.32608142]
[1733929854489,0.0011716,99820.0,99819.0,0.32649391]
[1733929854721,0.0011716,99820.0,99819.0,0.33549391]
[1733929854929,0.0011716,99820.0,99819.0,0.33349391]
[1733929856238,0.0001716,99840.0,99839.0,0.500322]
[1733929856689,0.0001716,99840.0,99839.0,0.50675281]
[1733929856913,0.0001716,99840.0,99839.0,0.58775281]
[1733929857122,0.0001716,99840.0,99839.0,0.68806126]
[1733929857333,0.0001716,99840.0,99839.0,0.60706126]
[1733929857536,0.0001716,99840.0,99839.0,0.50691689]
[1733929857743,0.0001716,99840.0,99839.0,1.07614534]
[1733929857967,0.37989591,99847.0,99846.0,0.15]
[1733929858195,0.15130999,99847.0,99840.0,4e-08]
[1733929858403,0.15130999,99847.0,99840.0,3e-08]
[1733929858404,0.14150944,99847.0,99840.0,3e-08]
[1733929858606,0.14150944,99847.0,99839.0,0.13780831]
[1733929858829,0.13219052,99847.0,99841.0,0.00743496]
[1733929859095,0.11880316,99847.0,99842.0,0.68937336]
[1733929859306,0.11880316,99847.0,99842.0,0.00619258]
[1733929859513,0.08986264,99843.0,99839.0,0.24797642]
[1733929859727,0.06314714,99843.0,99839.0,0.24797642]
[1733929859966,0.06314714,99843.0,99840.0,0.170189]
[1733929860174,0.09293691,99847.0,99840.0,3e-08]
[1733929860391,0.0001716,99890.0,99840.0,3e-08]
[1733929860392,0.05069059,99884.0,99877.0,0.200244]
[1733929860603,0.05086877,99882.0,99840.0,0.13125473]
[1733929860809,0.0001716,99890.0,99862.0,0.50445601]
[1733929860810,0.05016091,99887.0,99862.0,0.50445601]
[1733929861014,0.05016091,99887.0,99858.0,0.19707236]
[1733929861215,0.05016091,99887.0,99839.0,5e-08]
[1733929861433,0.05016091,99887.0,99856.0,3e-08]
[1733929861664,0.05077172,99885.0,99842.0,0.0144]
[1733929861877,0.20027797,99861.0,99843.0,0.412995]
[1733929862080,0.20027797,99861.0,99856.0,0.200287]
[1733929862300,0.05008809,99866.0,99842.0,1.03365854]
[1733929862301,0.14990219,99856.0,99842.0,0.0144]
[1733929862506,0.03409392,99856.0,99844.0,0.06907688]
[1733929862716,0.17334064,99880.0,99845.0,1.52777245]
[1733929862928,0.15070832,99879.0,99846.0,0.979334]
[1733929863134,0.15070832,99879.0,99846.0,0.02481548]
[1733929863341,0.15070832,99879.0,99858.0,3e-08]
[1733929863547,0.20931529,99858.0,99848.0,0.700703]
[1733929863748,0.20931529,99858.0,99855.0,0.02326916]
[1733929864165,0.25030845,99857.0,99856.0,0.001]
[1733929864574,0.15,99856.0,99855.0,0.02326916]
[1733929864793,0.25030845,99856.0,99855.0,0.02326916]
[1733929865026,0.27330845,99856.0,99855.0,0.01097687]
[1733929865235,0.35080845,99856.0,99855.0,0.01097687]
[1733929865441,0.25030845,99856.0,99855.0,0.01097687]
[1733929865852,0.1001583,99856.0,99855.0,0.01097687]
[1733929866062,0.21031529,99858.0,99855.0,0.01097687]
[1733929866273,0.20931529,99858.0,99855.0,0.00297687]
[1733929866693,0.001,99857.0,99855.0,0.00297687]
[1733929866905,0.20931529,99858.0,99855.0,0.00297687]
[1733929867107,0.20931529,99858.0,99856.0,0.200288]
[1733929867108,0.20638009,99858.0,99856.0,0.200288]
[1733929867458,0.18620941,99858.0,99856.0,0.200288]
[1733929867801,0.17334064,99880.0,99861.0,0.200276]
[1733929868006,0.10030845,99879.0,99861.0,1.01925854]
[1733929869551,0.10030845,99879.0,99862.0,0.200276]
[1733929869763,0.10030845,99879.0,99866.0,0.200267]
[1733929870196,0.10030845,99879.0,99861.0,1.02725854]
[1733929870441,0.10030845,99879.0,99861.0,1.22253554]
[1733929870635,0.10130845,99879.0,99861.0,1.22853554]
[1733929870850,0.10130845,99879.0,99865.0,0.200269]
[1733929871046,0.10030845,99879.0,99861.0,1.01925854]
[1733929871199,0.10130845,99879.0,99866.0,0.006]
[1733929871798,0.10130845,99879.0,99866.0,0.046076]
[1733929872426,0.10030845,99878.0,99866.0,0.006]
[1733929872634,0.10030845,99878.0,99858.0,0.15]
[1733929872837,0.10030845,99878.0,99867.0,0.040075]
[1733929873041,0.10030845,99878.0,99867.0,1.05933354]
[1733929873245,0.0001716,99880.0,99879.0,0.200242]
[1733929873460,0.005,99888.0,99879.0,1.01925854]
[1733929873655,0.10530845,99888.0,99879.0,1.01925854]
[1733929873858,0.10530845,99888.0,99880.0,0.15661185]
[1733929874468,0.00555062,99888.0,99882.0,0.15]
[1733929875362,0.000497,99900.0,99884.0,0.15]
[1733929875587,0.00116,99898.0,99884.0,0.15]
[1733929875816,0.00116,99898.0,99882.0,0.200235]
[1733929875817,0.00116,99898.0,99893.0,0.15]
[1733929876016,0.00116,99898.0,99895.0,0.15]
[1733929876580,0.00216,99898.0,99895.0,0.15]
[1733929877003,0.00116,99898.0,99897.0,0.01957157]
[1733929877203,0.00216,99898.0,99897.0,0.01957157]
[1733929877429,1e-08,99899.0,99897.0,0.01957157]
[1733929878309,1e-08,99899.0,99898.0,0.350204]
[1733929878525,1e-08,99899.0,99897.0,0.01957157]
[1733929878526,0.00220402,99923.0,99899.0,0.15]
[1733929878725,0.00220402,99923.0,99907.0,0.15]
[1733929878726,0.10030845,99922.0,99907.0,0.15]
[1733929878930,0.10030845,99922.0,99907.0,1.16925854]
[1733929879132,0.00220402,99923.0,99916.0,0.15]
[1733929879257,0.00220402,99923.0,99907.0,1.16925854]
[1733929879457,0.00220402,99923.0,99919.0,0.15]
[1733929879662,0.00220402,99923.0,99919.0,1.16925854]
[1733929879925,0.10030845,99922.0,99919.0,1.16925854]
[1733929880138,0.00220402,99923.0,99919.0,1.16925854]
[1733929880307,0.18494755,99930.0,99919.0,1.16925854]
[1733929880513,0.10030845,99923.0,99921.0,0.01966166]
[1733929881489,0.0765,99922.0,99921.0,0.01966166]
[1733929881699,0.17680845,99922.0,99921.0,0.01966166]
[1733929882226,0.10030845,99922.0,99921.0,0.01966166]
[1733929882659,0.01160691,99930.0,99921.0,0.01966166]
[1733929882834,0.18858834,99940.0,99921.0,0.17366166]
[1733929883009,0.10030845,99938.0,99921.0,0.17366166]
[1733929883194,0.17334064,99931.0,99921.0,0.16966166]
[1733929883395,0.10030845,99930.0,99921.0,0.17566166]
[1733929883990,0.0152477,99940.0,99921.0,0.16966166]
[1733929884286,0.18858834,99940.0,99921.0,0.17266166]
[1733929884616,0.18858834,99940.0,99922.0,0.200156]
[1733929884833,0.18858834,99940.0,99923.0,0.15]
[1733929885530,0.0152477,99940.0,99926.0,0.15]
[1733929885739,0.001,99930.0,99926.0,0.15]
[1733929885959,0.10130845,99930.0,99926.0,0.15]
[1733929886165,0.10030845,99930.0,99926.0,0.15]
[1733929886577,0.10030845,99930.0,99923.0,0.001]
[1733929887016,0.0152477,99940.0,99923.0,0.002]
[1733929887242,0.0152477,99940.0,99924.0,0.19869332]
[1733929887455,0.0152477,99940.0,99928.0,0.15]
[1733929887665,0.0152477,99940.0,99926.0,0.005]
[1733929887666,0.18858834,99940.0,99926.0,0.005]
[1733929888291,0.00141646,99939.0,99926.0,0.005]
[1733929888522,0.00141646,99939.0,99921.0,0.16966166]
[1733929888736,0.001,99930.0,99926.0,0.009]
[1733929888943,0.10030845,99938.0,99923.0,0.003]
[1733929889380,0.10030845,99938.0,99926.0,0.007]
[1733929889585,0.10030845,99938.0,99926.0,0.01]
[1733929889816,0.10030845,99938.0,99926.0,0.003]
[1733929890235,0.001,99930.0,99926.0,0.012]
[1733929890796,0.00141646,99939.0,99924.0,0.200152]
[1733929890890,0.00141646,99939.0,99925.0,0.15]
[1733929892343,0.22351244,99950.0,99931.0,0.15]
[1733929892579,0.10030845,99948.0,99938.0,0.02007518]
[1733929893321,0.001,99939.0,99938.0,0.27038363]
[1733929893526,0.0001718,99940.0,99939.0,0.15]
[1733929893749,0.0501718,99950.0,99939.0,0.15]
[1733929893964,0.10030845,99948.0,99939.0,0.15]
[1733929894385,0.00155861,99949.0,99939.0,0.15]
[1733929894386,0.10030845,99947.0,99939.0,0.15]
[1733929894588,0.00155861,99949.0,99939.0,0.15]
[1733929894798,0.00155861,99949.0,99938.0,0.02707518]
[1733929895229,0.10030845,99948.0,99938.0,0.02707518]
[1733929895651,0.10330845,99948.0,99938.0,0.02707518]
[1733929895861,0.003,99948.0,99938.0,0.02007518]
[1733929896067,0.00055861,99949.0,99938.0,0.02007518]
[1733929896290,0.00055861,99949.0,99939.0,0.006]
[1733929896291,0.001,99948.0,99939.0,0.006]
[1733929896518,0.00055861,99949.0,99938.0,0.02107518]
[1733929896731,0.00055861,99949.0,99938.0,0.02007518]
[1733929897007,0.10030845,99948.0,99938.0,0.02207518]
[1733929897214,0.1267,99947.0,99938.0,0.02107518]
[1733929897421,0.10030845,99946.0,99939.0,0.001]
[1733929897857,0.10030845,99946.0,99938.0,0.02107518]
[1733929898522,0.10030845,99946.0,99938.0,0.02007518]
[1733929899359,0.10030845,99946.0,99938.0,0.02107518]
[1733929900002,0.15,99942.0,99938.0,0.001]
[1733929900190,0.10030845,99941.0,99938.0,0.001]
[1733929900403,0.15,99939.0,99938.0,0.001]
[1733929900625,0.0831,99931.0,99919.0,0.0001641]
[1733929900857,0.42364909,99930.0,99919.0,0.0001641]
[1733929901698,0.15,99928.0,99919.0,0.0001641]
[1733929901904,0.10030845,99927.0,99919.0,0.0001641]
[1733929902138,0.15,99926.0,99919.0,0.0001641]
[1733929902343,0.10030845,99925.0,99919.0,0.0001641]
[1733929903169,0.10030845,99925.0,99924.0,0.02036776]
[1733929903410,0.0831,99931.0,99924.0,0.02036776]
[1733929903628,0.048,99939.0,99924.0,0.02036776]
[1733929903858,0.10030845,99938.0,99924.0,0.02036776]
[1733929904918,0.048,99939.0,99924.0,0.02036776]
[1733929905322,0.048,99939.0,99924.0,0.02136776]
[1733929905739,0.048,99939.0,99924.0,0.02036776]
[1733929906161,0.10030845,99938.0,99924.0,0.02436776]
[1733929906296,0.10030845,99938.0,99924.0,0.03136776]
[1733929907335,0.10030845,99938.0,99924.0,0.02336776]
[1733929907787,0.10130845,99938.0,99924.0,0.03036776]
[1733929908255,0.25130845,99938.0,99924.0,0.03036776]
[1733929908447,0.15,99934.0,99924.0,0.03036776]
[1733929908690,0.10030845,99933.0,99924.0,0.03036776]
[1733929908831,0.10030845,99933.0,99924.0,0.02736776]
[1733929909433,0.10030845,99933.0,99924.0,0.02236776]
[1733929909613,0.048,99939.0,99924.0,0.02636776]
[1733929909863,0.048,99939.0,99928.0,0.15]
[1733929910295,0.0761718,99940.0,99929.0,0.02826906]
[1733929910296,0.0001718,99940.0,99929.0,0.02826906]
[1733929911116,0.0001718,99940.0,99930.0,0.02826906]
[1733929911117,0.11558384,99940.0,99930.0,0.02826906]
[1733929911325,0.11558384,99940.0,99928.0,0.002]
[1733929911326,0.10030845,99939.0,99928.0,0.002]
[1733929911545,0.15,99930.0,99928.0,0.002]
[1733929911741,0.10030845,99929.0,99928.0,0.002]
[1733929912151,0.0778,99933.0,99928.0,0.002]
[1733929912397,0.0477,99938.0,99928.0,0.001]
[1733929912598,0.15,99934.0,99929.0,0.0293094]
[1733929912808,0.0477,99938.0,99929.0,0.001]
[1733929913006,0.14800845,99938.0,99930.0,0.02830962]
[1733929913213,0.14800845,99938.0,99928.0,0.004]
[1733929913466,0.14800845,99938.0,99929.0,0.02830944]
[1733929913925,0.001,99938.0,99930.0,0.02830944]
[1733929914098,0.001,99938.0,99930.0,0.2373302]
[1733929914297,0.001,99938.0,99931.0,0.02830944]
[1733929914508,0.0001718,99940.0,99931.0,0.02830944]
[1733929914737,0.0001718,99940.0,99932.0,0.15]
[1733929914957,0.0001718,99940.0,99933.0,0.02830944]
[1733929915935,0.10048025,99940.0,99939.0,0.02013839]
[1733929916163,0.0001718,99940.0,99939.0,0.04844783]
[1733929917032,0.0011718,99940.0,99939.0,0.04844783]
[1733929917211,0.0011718,99940.0,99939.0,0.05244783]
[1733929917419,0.0001718,99940.0,99939.0,0.05244783]
[1733929917624,0.0011718,99940.0,99939.0,0.05944783]
[1733929918193,0.0011718,99940.0,99939.0,0.29699728]
[1733929918413,0.0011718,99940.0,99939.0,0.20944783]
[1733929919627,0.0011718,99940.0,99939.0,0.32209618]
[1733929919832,0.0011718,99940.0,99939.0,0.47209618]
[1733929920047,0.0011718,99940.0,99939.0,0.47226947]
[1733929920260,0.0011718,99940.0,99939.0,0.20944783]
[1733929922570,0.00055861,99949.0,99939.0,0.30975628]
[1733929922767,0.05003041,99950.0,99949.0,0.350102]
[1733929922974,0.05003041,99950.0,99949.0,0.37841144]
[1733929923172,0.05003041,99950.0,99949.0,0.17830944]
[1733929923779,0.05003041,99950.0,99949.0,0.02830944]
[1733929923996,0.05003041,99950.0,99949.0,0.02847354]
[1733929924478,0.05103041,99950.0,99949.0,0.18647354]
[1733929925511,0.05103041,99950.0,99949.0,0.03647354]
[1733929925918,0.05103041,99950.0,99949.0,0.03947354]
[1733929926957,0.02272962,99950.0,99949.0,0.03947354]
[1733929927833,0.200026,99987.0,99949.0,0.03947354]